bitfinex-derivatives/quotes_SOLF0:USTF0_20251210
["timestamp","ask_amount","ask_price","bid_price","bid_amount"]
[1765398049251,25.19458234,141.21,141.07,99.222]
[1765398049452,99.1047,141.24,141.1,99.2022]
[1765398049651,0.05310326,141.18,141.16,0.04724784]
[1765398049954,0.05062027,141.18,141.16,0.04916777]
[1765398050555,0.05062027,141.18,141.05,99.2361]
[1765398050763,6.3731,141.2,141.08,159.2934]
[1765398051056,6.3731,141.2,141.09,99.2092]
[1765398051259,6.3731,141.2,141.08,159.2934]
[1765398051450,0.0544306,141.15,141.13,0.0543776]
[1765398051649,99.1454,141.19,141.13,0.0043776]
[1765398051854,25.19458234,141.21,141.13,0.0043776]
[1765398052064,124.29208234,141.25,141.13,0.0043776]
[1765398052267,25.19458234,141.25,141.13,99.1749]
[1765398052560,99.0803,141.28,141.14,99.1733]
[1765398052764,0.05238028,141.22,141.2,0.05357685]
[1765398052954,0.04937435,141.22,141.2,0.00357685]
[1765398054454,1.46937435,141.22,141.09,159.287]
[1765398054663,6.3714,141.23,141.13,6.3756]
[1765398054858,99.1047,141.24,141.13,6.3756]
[1765398055059,25.19458234,141.25,141.14,99.1713]
[1765398055259,99.0779,141.28,141.15,99.1612]
[1765398055461,99.0779,141.28,141.2,0.05044239]
[1765398055462,0.05412265,141.23,141.2,0.05044239]
[1765398056064,0.05412265,141.23,141.11,60.06]
[1765398056270,25.19458234,141.24,141.13,99.1795]
[1765398056666,15.32668952,141.24,141.13,99.1795]
[1765398056972,0.05129746,141.2,141.17,0.05152144]
[1765398057572,15.37798698,141.2,141.11,6.3766]
[1765398057869,99.1169,141.23,141.1,99.2023]
[1765398058173,15.32668952,141.2,141.1,99.2023]
[1765398058473,15.32668952,141.2,141.13,6.3757]
[1765398058671,0.05233562,141.16,141.14,0.04685791]
[1765398058867,0.05233562,141.16,141.07,159.2817]
[1765398059170,15.32668952,141.16,141.03,99.2506]
[1765398059372,21.70318952,141.12,141.01,99.2623]
[1765398059575,15.32668952,141.08,140.98,99.2848]
[1765398059871,15.32668952,141.04,140.94,6.3843]
[1765398060376,15.32668952,141.07,140.97,99.2933]
[1765398060573,15.32668952,141.11,140.98,60.06]
[1765398060865,15.32668952,141.15,141.04,99.2444]
[1765398061171,0.04899575,141.11,140.99,99.2778]
[1765398061374,99.1795,141.14,141.0,99.2725]
[1765398061571,15.32668952,141.15,141.03,99.2495]
[1765398061767,15.32668952,141.15,141.0,99.2725]
[1765398061768,59.22,141.18,141.05,99.2366]
[1765398061962,59.22,141.18,141.04,99.2405]
[1765398062266,0.05090981,141.12,141.04,99.244]
[1765398062467,0.05090981,141.12,141.02,99.2535]
[1765398062468,15.32668952,141.23,141.1,99.2019]
[1765398062773,99.0993,141.25,141.11,99.1952]
[1765398063170,99.1123,141.23,141.1,99.2019]
[1765398063469,59.24,141.26,141.12,99.1844]
[1765398063674,0.04635224,141.18,141.15,0.04882146]
[1765398063875,0.0533938,141.18,141.15,0.04984333]
[1765398064069,15.32668952,141.31,141.17,99.1516]
[1765398064268,99.0512,141.32,141.19,6.3729]
[1765398064578,1.23214191,141.32,141.19,99.1386]
[1765398064782,158.2771,141.34,141.19,99.1386]
[1765398064984,0.05238965,141.28,141.25,0.04953697]
[1765398065168,0.04798729,141.28,141.25,0.0517004]
[1765398066481,0.04798729,141.28,141.25,105.5179004]
[1765398066673,99.0004,141.39,141.25,99.1478004]
[1765398066872,59.24,141.41,141.27,99.0821]
[1765398067171,59.24,141.41,141.29,99.0679]
[1765398067370,158.2283,141.41,141.28,6.3691]
[1765398067573,0.04527452,141.36,141.33,0.04672658]
[1765398067780,0.04527452,141.36,141.23,99.109]
[1765398067970,98.9967,141.4,141.25,99.092]
[1765398068175,59.24,141.41,141.27,99.0813]
[1765398068382,59.24,141.41,141.3,99.0602]
[1765398068575,6.3623,141.44,141.31,105.421]
[1765398068778,15.32668952,141.47,141.36,0.05383008]
[1765398068779,0.04860985,141.39,141.36,0.05383008]
[1765398069077,0.04613859,141.39,141.36,0.04617509]
[1765398070576,59.22,141.48,141.36,0.04617509]
[1765398070770,59.22,141.48,141.33,105.4043]
[1765398070974,105.3147,141.46,141.33,62.0]
[1765398071273,6.3614,141.46,141.31,99.0505]
[1765398071481,6.3614,141.46,141.32,60.06]
[1765398071665,0.04916746,141.4,141.37,0.04556724]
[1765398071872,99.0034,141.39,141.24,15.32668952]
[1765398072066,98.9995,141.39,141.24,174.46848952]
[1765398072280,6.3646,141.39,141.25,105.4634]
[1765398072466,197.9086,141.46,141.29,99.0643]
[1765398072665,164.517,141.48,141.33,6.3667]
[1765398072865,0.0515902,141.42,141.39,0.05269476]
[1765398073078,98.9902,141.41,141.24,114.42828952]
[1765398073277,98.9902,141.41,141.25,159.1364]
[1765398073482,98.9952,141.4,141.25,60.04]
[1765398073784,99.007,141.38,141.23,60.04]
[1765398073976,99.0305,141.35,141.18,99.1422]
[1765398074285,0.0482243,141.28,141.26,0.04562507]
[1765398074580,0.04491881,141.28,141.26,0.04515621]
[1765398074772,0.00491881,141.28,141.26,0.04515621]
[1765398075079,99.0006,141.39,141.26,61.48515621]
[1765398075286,98.981,141.42,141.26,174.43168952]
[1765398075469,15.32668952,141.44,141.29,105.4363]
[1765398075670,99.0149,141.37,141.22,99.1152]
[1765398075979,0.04519728,141.31,141.28,0.05284009]
[1765398076177,0.05101751,141.31,141.28,0.05075045]
[1765398076777,1.47101751,141.31,141.2,60.02]
[1765398076976,99.0488,141.32,141.2,60.02]
[1765398077186,6.3677,141.32,141.2,60.02]
[1765398077392,15.32668952,141.36,141.22,99.1128]
[1765398077682,0.05135424,141.3,141.28,0.04753921]
[1765398077886,0.05279707,141.3,141.28,0.04753921]
[1765398078385,99.0146,141.37,141.28,0.04753921]
[1765398078583,173.50728952,141.39,141.25,99.0967]
[1765398078786,59.18,141.39,141.26,99.0898]
[1765398079087,114.31148952,141.42,141.28,99.0745]
[1765398079282,98.9998,141.39,141.23,114.43538952]
[1765398079489,0.05107063,141.32,141.3,0.05338423]
[1765398079789,0.05247288,141.32,141.3,0.05362453]
[1765398080385,1.47247288,141.32,141.2,60.02]
[1765398080576,99.0465,141.33,141.2,60.02]
[1765398080774,59.18,141.37,141.2,159.15]
[1765398081079,59.18,141.37,141.24,99.104]
[1765398081278,59.18,141.37,141.21,99.1236]
[1765398081279,0.04754474,141.32,141.29,0.05148709]
[1765398081788,0.04754474,141.32,141.21,99.1248]
[1765398081995,15.32668952,141.34,141.2,99.1309]
[1765398082177,99.0233,141.36,141.21,99.125]
[1765398082487,99.0273,141.35,141.21,99.125]
[1765398082681,0.05318319,141.3,141.23,6.3713]
[1765398083382,0.05318319,141.3,141.25,99.0947]
[1765398083587,0.04964085,141.29,141.19,114.46478952]
[1765398083884,59.18,141.37,141.26,99.0895]
[1765398084186,99.0696,141.29,141.15,99.1654]
[1765398084482,6.3694,141.28,141.16,6.3742]
[1765398084892,0.04918395,141.23,141.21,0.05192065]
[1765398085083,0.05167764,141.23,141.21,0.05192065]
[1765398086086,0.05167764,141.23,141.11,99.19]
[1765398086278,173.57948952,141.29,141.14,99.1735]
[1765398086687,59.18,141.29,141.16,99.1565]
[1765398086888,59.18,141.29,141.17,99.1524]
[1765398087083,0.04588992,141.24,141.18,99.1456]
[1765398087291,0.04588992,141.24,141.18,159.1656]
[1765398087485,0.04588992,141.24,141.19,6.3729]
[1765398087982,0.04588992,141.24,141.18,60.02]
[1765398088178,0.04588992,141.24,141.15,15.32668952]
[1765398088379,0.04643927,141.21,141.14,60.02]
[1765398089393,0.04643927,141.21,141.14,75.34668952]
[1765398089700,0.04643927,141.21,141.13,15.32668952]
[1765398090190,0.04643927,141.21,141.14,99.1727]
[1765398090504,0.04643927,141.21,141.13,114.50768952]
[1765398090798,0.04643927,141.21,141.16,6.3743]
[1765398091299,0.04643927,141.21,141.11,159.2147]
[1765398091497,99.1024,141.25,141.14,15.32668952]
[1765398091994,99.1024,141.25,141.15,60.02]
[1765398092196,6.3718,141.23,141.15,60.02]
[1765398092497,99.0792,141.28,141.18,0.05002337]
[1765398092695,99.0792,141.28,141.16,62.0]
[1765398093185,6.3707,141.25,141.17,6.3737]
[1765398093586,0.05276012,141.22,141.2,0.0504497]
[1765398094702,99.1321,141.2,141.03,59.44]
[1765398094899,6.375,141.15,141.03,59.44]
[1765398095106,99.1511,141.18,141.03,59.44]
[1765398095295,99.1433,141.19,141.03,59.44]
[1765398095490,0.04754976,141.12,141.02,60.04]
[1765398095694,99.1608,141.16,141.02,60.04]
[1765398095895,99.1608,141.16,140.99,60.04]
[1765398096096,15.32668952,141.17,140.99,60.04]
[1765398096393,59.2,141.19,141.02,99.2565]
[1765398096598,0.04827484,141.12,141.03,99.2511]
[1765398096795,0.04795693,141.09,141.01,99.2646]
[1765398097000,0.04795693,141.09,141.02,99.2584]
[1765398097203,59.2,141.19,141.02,62.0]
[1765398097204,0.04881465,141.07,141.02,62.0]
[1765398097397,0.04776726,141.06,141.02,62.0]
[1765398097704,0.04797836,141.05,140.97,99.2932]
[1765398098008,99.0903,141.26,141.05,99.2346]
[1765398098200,99.0676,141.3,141.11,15.32668952]
[1765398098201,99.069,141.29,141.11,15.32668952]
[1765398098408,99.0609,141.31,141.12,99.1861]
[1765398098590,99.0725,141.29,141.11,15.32668952]
[1765398099001,0.05317712,141.21,141.19,0.04750528]
[1765398099203,0.0478171,141.21,141.19,0.04750528]
[1765398100297,0.0478171,141.21,141.08,99.2125]
[1765398100298,0.0478171,141.21,141.04,99.2435]
[1765398100603,99.1266,141.21,141.05,62.0]
[1765398100796,99.1266,141.21,141.04,15.32668952]
[1765398100797,99.1266,141.21,141.0,174.65758952]
[1765398101000,99.1266,141.21,141.01,99.2652]
[1765398101306,0.05265556,141.12,141.02,6.3805]
[1765398101603,0.04575356,141.08,141.02,6.3805]
[1765398101903,99.1771,141.14,140.94,99.3147]
[1765398102106,99.1577,141.17,140.96,114.62698952]
[1765398102107,99.1656,141.16,140.96,114.62698952]
[1765398102301,99.1696,141.15,140.96,114.62318952]
[1765398102613,6.3751,141.15,140.97,6.3828]
[1765398102910,0.05071321,141.07,141.05,0.04846357]
[1765398103209,0.05180471,141.07,141.05,0.05301011]
[1765398103407,1.47180471,141.07,140.92,15.32668952]
[1765398103708,6.3799,141.05,140.92,62.0]
[1765398103911,99.242,141.05,140.92,60.06]
[1765398104303,99.2333,141.06,140.92,60.06]
[1765398104504,0.04716509,141.0,140.92,60.06]
[1765398105696,0.04716509,141.0,140.88,114.68308952]
[1765398106008,0.04617549,140.95,140.9,60.06]
[1765398106211,6.3792,141.06,140.9,60.06]
[1765398106407,105.6101,141.06,140.9,60.06]
[1765398106713,6.3792,141.06,140.9,60.06]
[1765398106903,6.3783,141.08,140.91,62.0]
[1765398107107,99.1977,141.11,140.93,99.3216]
[1765398107411,0.05383797,141.01,140.92,21.71198952]
[1765398107607,0.05396516,140.98,140.95,0.04722169]
[1765398107807,0.05442117,140.98,140.95,0.04722169]
[1765398108012,0.05442117,140.98,140.95,60.12722169]
[1765398108211,0.05442117,140.98,140.95,60.14722169]
[1765398109110,0.05442117,140.98,140.95,0.04722169]
[1765398109299,0.05442117,140.98,140.95,60.14722169]
[1765398110207,6.3784,141.08,140.95,61.56722169]
[1765398110406,99.1898,141.12,140.96,62.0]
[1765398110804,99.182,141.13,140.97,114.62058952]
[1765398111003,99.1761,141.14,140.97,114.62058952]
[1765398111211,0.04770601,141.07,141.04,0.05010264]
[1765398111409,0.04744348,141.07,141.04,60.14929527]
[1765398111809,0.04744348,141.07,141.04,0.04929527]
[1765398113708,99.248,141.04,140.92,15.32668952]
[1765398113922,99.2313,141.06,140.93,122.1]
[1765398114214,6.3796,141.05,140.94,6.3842]
[1765398114909,0.04561134,141.01,140.98,0.05025364]
[1765398115117,99.21,141.09,140.98,0.05234759]
[1765398115307,99.21,141.09,140.96,99.3004]
[1765398115619,99.2026,141.1,140.96,99.3004]
[1765398115620,6.3785,141.08,140.98,6.3823]
[1765398115808,99.1968,141.11,140.99,99.2746]
[1765398116012,99.1968,141.11,140.98,114.61178952]
[1765398116216,0.04972747,141.06,141.04,0.0456858]
[1765398116417,0.04643789,141.06,141.04,0.0456858]
[1765398117213,99.2034,141.1,141.04,0.0456858]
[1765398117407,99.2034,141.1,141.02,60.1]
[1765398117607,99.1982,141.11,141.02,60.1]
[1765398117813,99.1982,141.11,140.97,62.0]
[1765398117814,99.2113,141.09,140.97,62.0]
[1765398118109,0.05453345,141.04,141.02,0.05110665]
[1765398118415,0.05116259,141.04,141.02,0.05110665]
[1765398119310,1.47116259,141.04,140.94,60.1]
[1765398119513,120.4363,141.14,140.94,60.1]
[1765398119717,124.17794654,141.19,141.0,99.2715]
[1765398119912,25.03784654,141.19,141.03,99.247]
[1765398120109,99.156,141.17,141.03,60.1]
[1765398120304,0.05141181,141.12,141.1,0.04685314]
[1765398120525,0.05214533,141.12,140.95,99.3062]
[1765398120712,99.1884,141.12,140.93,99.3206]
[1765398120918,124.19394654,141.17,140.98,99.2861]
[1765398121217,25.03784654,141.17,140.99,99.2782]
[1765398121413,25.03784654,141.17,140.99,99.2763]
[1765398121719,25.08777162,141.09,140.92,99.3289]
[1765398122014,99.2277,141.07,140.91,6.3857]
[1765398122215,25.03784654,141.05,140.9,159.4591]
[1765398122412,25.03784654,141.13,140.96,99.3002]
[1765398122616,0.05421934,141.06,140.94,99.3138]
[1765398122913,0.05349786,141.01,140.96,99.2983]
[1765398123120,31.41394654,141.13,140.97,99.33896684]
[1765398123418,59.22,141.14,140.98,159.4026]
[1765398123719,25.03784654,141.05,140.88,159.4766]
[1765398123923,25.03784654,141.09,140.94,99.3149]
[1765398124111,0.05447337,141.03,141.0,0.05413643]
[1765398124419,0.05076444,141.03,141.0,0.04686137]
[1765398126015,1.47076444,141.03,140.85,99.3761]
[1765398126222,99.2414,141.05,140.86,60.12]
[1765398126417,124.27174654,141.06,140.87,99.3642]
[1765398126611,6.3803,141.04,140.88,6.387]
[1765398126807,25.03784654,141.06,140.88,99.3552]
[1765398127115,0.05027721,140.98,140.88,6.387]
[1765398127309,0.04519749,140.94,140.84,99.3794]
[1765398127514,0.0447843,140.9,140.85,60.12]
[1765398127810,0.04969316,140.89,140.83,6.3893]
[1765398128115,0.04571946,140.87,140.84,60.12]
[1765398128314,0.05307868,140.87,140.8,99.4135]
[1765398128510,0.05307868,140.87,140.78,21.34392385]
[1765398128819,0.04968904,140.84,140.66,99.5101]
[1765398129118,0.05037269,140.76,140.67,122.12]
[1765398129416,0.05194921,140.73,140.67,122.12]
[1765398129621,0.04777202,140.71,140.66,60.12]
[1765398129922,0.0497544,140.7,140.6,99.5544]
[1765398130220,0.05085994,140.66,140.56,99.5798]
[1765398130424,25.03784654,140.78,140.56,99.5798]
[1765398130425,99.4082,140.81,140.62,99.5361]
[1765398130618,105.7986,140.81,140.64,6.3981]
[1765398130812,99.3929,140.83,140.65,60.14]
[1765398131013,99.3929,140.83,140.65,159.6591]
[1765398131212,99.4154,140.8,140.65,60.14]
[1765398131420,0.04959574,140.74,140.71,0.05453033]
[1765398131614,0.0535854,140.74,140.62,60.14]
[1765398131818,99.4562,140.74,140.56,120.65701258]
[1765398132017,99.5062,140.67,140.5,28.09995118]
[1765398132219,99.5062,140.67,140.5,63.22210464]
[1765398132424,99.5235,140.65,140.5,63.22210464]
[1765398132723,0.04806136,140.59,140.5,162.84790464]
[1765398132927,0.04800679,140.56,140.5,63.22210464]
[1765398133222,0.05028686,140.54,140.5,63.22210464]
[1765398133423,0.04644942,140.53,140.5,63.22210464]
[1765398133621,0.05331881,140.53,140.5,3.06210464]
[1765398134120,99.4927,140.69,140.5,4.48210464]
[1765398134320,99.4708,140.72,140.55,99.587]
[1765398134635,59.16,140.79,140.61,99.5445]
[1765398134636,158.5823,140.79,140.61,99.5445]
[1765398134823,99.4461,140.76,140.58,124.60534654]
[1765398135123,0.04577816,140.68,140.66,0.04674658]
[1765398135321,99.4734,140.72,140.56,60.2]
[1765398135523,99.4548,140.75,140.57,99.5724]
[1765398135717,158.5817,140.79,140.62,99.5377]
[1765398136022,158.5817,140.79,140.56,99.5811]
[1765398136023,99.4494,140.75,140.56,99.5811]
[1765398136218,0.0456855,140.67,140.64,0.02094268]
[1765398136527,0.04662457,140.67,140.64,0.02094268]
[1765398136725,1.46662457,140.67,140.55,60.2]
[1765398137021,99.4915,140.69,140.55,60.2]
[1765398137022,99.4919,140.69,140.55,60.2]
[1765398137419,99.5025,140.68,140.53,60.22]
[1765398137617,99.5159,140.66,140.53,60.22]
[1765398137928,0.05286797,140.61,140.51,159.8357]
[1765398138116,0.04823977,140.57,140.51,159.8357]
[1765398138427,0.04646682,140.55,140.51,60.22]
[1765398138720,0.04840629,140.54,140.51,60.22]
[1765398138929,99.5346,140.63,140.51,60.22]
[1765398139130,99.513,140.66,140.51,60.22]
[1765398139423,105.8979,140.68,140.53,25.03784654]
[1765398139824,0.04617117,140.62,140.59,0.04840629]
[1765398140019,0.05079008,140.62,140.59,0.04840629]
[1765398140425,99.4695,140.73,140.59,1.46840629]
[1765398140734,99.4695,140.73,140.58,62.0]
[1765398141024,99.4784,140.71,140.58,62.0]
[1765398141425,0.04777839,140.66,140.63,0.05275254]
[1765398141625,0.04954353,140.66,140.63,0.0541684]
[1765398142524,99.4455,140.76,140.63,1.4741684]
[1765398142823,99.4455,140.76,140.62,99.5373]
[1765398143030,99.4213,140.79,140.65,99.5167]
[1765398143213,99.4511,140.75,140.64,60.26]
[1765398143420,0.05356407,140.71,140.68,0.05081276]
[1765398143620,0.04606253,140.71,140.68,0.04919791]
[1765398144021,99.4138,140.8,140.68,1.46919791]
[1765398144220,6.3917,140.79,140.67,105.9015]
[1765398144427,99.4224,140.79,140.66,25.03784654]
[1765398144720,357.3474,140.86,140.68,99.4921]
[1765398144721,99.3777,140.86,140.68,99.4921]
[1765398144922,0.0472904,140.78,140.76,0.04981771]
[1765398145120,99.4291,140.78,140.69,60.26]
[1765398145327,6.3932,140.75,140.64,105.919]
[1765398145524,0.05095599,140.71,140.68,0.04736061]
[1765398145920,0.05095599,140.71,140.68,60.30736061]
[1765398146120,0.05095599,140.71,140.68,0.04736061]
[1765398147329,99.4306,140.78,140.69,1.42]
[1765398147529,99.4359,140.77,140.69,60.26]
[1765398147830,6.3932,140.75,140.69,60.26]
[1765398148025,6.3932,140.75,140.66,6.3972]
[1765398148219,105.8719,140.72,140.66,60.26]
[1765398148417,0.04902351,140.7,140.68,0.04708]
[1765398148621,0.04906279,140.7,140.68,0.04708]
[1765398150129,99.3745,140.86,140.71,99.4744]
[1765398150428,99.388,140.84,140.71,60.26]
[1765398151130,0.05351754,140.79,140.65,122.26]
[1765398151333,99.3939,140.83,140.66,99.5123]
[1765398151630,99.3728,140.86,140.66,124.55014654]
[1765398151825,99.4093,140.81,140.65,221.7771]
[1765398152027,99.4093,140.81,140.65,122.26]
[1765398152228,99.4093,140.81,140.72,0.05361141]
[1765398152229,0.04924079,140.74,140.72,0.05361141]
[1765398152427,0.05091541,140.74,140.5,21.26]
[1765398152633,124.66374654,140.51,140.3,99.0928]
[1765398152826,25.03784654,140.38,140.22,99.8185]
[1765398153018,298.8318,140.53,140.2,99.8381]
[1765398153019,25.03784654,140.33,140.2,99.8381]
[1765398153224,25.03784654,140.28,140.15,99.8743]
[1765398153523,25.03784654,140.23,140.11,99.8969]
[1765398153831,25.03784654,140.2,140.02,99.9663]
[1765398154035,99.8719,140.16,139.98,199.9836]
[1765398154328,99.8719,140.16,139.94,100.0231]
[1765398154329,99.8936,140.13,139.94,100.0231]
[1765398154531,99.9067,140.11,139.91,160.2996]
[1765398154731,99.8931,140.13,139.91,160.3025]
[1765398154921,99.8579,140.18,139.91,160.3019]
[1765398154922,124.91504654,140.15,139.91,160.3019]
[1765398155121,99.9068,140.11,139.87,60.28]
[1765398155332,0.0456333,140.03,140.01,0.05025586]
[1765398155531,0.0456333,140.03,139.8,125.16014654]
[1765398155732,59.24,140.04,139.8,100.1223]
[1765398155733,159.1966,140.04,139.8,100.1223]
[1765398155939,0.0517067,139.93,139.83,100.0982]
[1765398156138,0.0517067,139.93,139.81,100.1131]
[1765398156334,159.2066,140.03,139.81,100.1131]
[1765398156526,25.03784654,140.02,139.81,100.1131]
[1765398156929,25.03784654,139.98,139.8,100.1218]
[1765398157132,100.0141,139.96,139.77,3.1537147]
[1765398157332,125.05834654,139.95,139.77,3.1537147]
[1765398157531,0.04695138,139.9,139.77,3.1537147]
[1765398157835,25.03784654,139.9,139.77,3.1537147]
[1765398158135,25.03784654,139.94,139.78,100.135]
[1765398158439,25.03784654,139.97,139.8,100.1216]
[1765398158624,99.989,139.99,139.85,0.04569336]
[1765398158625,0.04968632,139.87,139.85,0.04569336]
[1765398158941,99.9849,140.0,139.81,100.1174]
[1765398159140,84.33784654,140.02,139.84,100.093]
[1765398159436,159.2706,140.02,139.85,100.0855]
[1765398159637,59.3,140.02,139.86,100.0786]
[1765398159833,0.0473209,139.95,139.93,0.04632609]
[1765398160038,0.05326023,139.95,139.93,0.04968743]
[1765398160235,1.42,139.94,139.93,0.04968743]
[1765398160425,1.42,139.94,139.83,100.0977]
[1765398160632,159.3391,140.01,139.81,100.1139]
[1765398160829,99.997,139.98,139.79,100.1261]
[1765398161131,25.03784654,140.03,139.86,100.0788]
[1765398161331,0.05480179,139.96,139.93,0.04707698]
[1765398161634,131.27314654,140.23,140.04,99.9533]
[1765398161830,199.6162,140.25,139.77,63.5737147]
[1765398161831,25.03784654,140.11,139.77,63.5737147]
[1765398162030,25.03784654,140.0,139.81,100.1165]
[1765398162228,100.0033,139.97,139.79,1.24376776]
[1765398162433,99.9871,140.0,139.78,100.136]
[1765398162635,99.9681,140.02,139.87,0.04966176]
[1765398162840,25.03784654,140.03,139.87,0.04966176]
[1765398163039,125.00164654,140.03,139.82,100.1072]
[1765398163231,100.0072,139.97,139.79,1.24396783]
[1765398163432,25.03784654,139.9,139.77,3.1537147]
[1765398163740,0.05299896,139.85,139.82,0.05483794]
[1765398164044,0.05062622,139.85,139.82,0.0546414]
[1765398164636,59.4,139.97,139.82,0.0546414]
[1765398164838,25.03784654,139.95,139.77,103.2962147]
[1765398165039,25.03784654,139.91,139.77,3.1537147]
[1765398165239,25.03784654,139.87,139.77,3.1537147]
[1765398165447,159.4571,139.9,139.77,3.1537147]
[1765398165746,159.4571,139.9,139.61,100.2584]
[1765398165747,125.19956872,139.83,139.61,100.2584]
[1765398165936,125.19956872,139.83,139.6,100.2627]
[1765398165937,100.1145,139.82,139.6,100.2627]
[1765398166137,59.42,139.85,139.68,100.2078]
[1765398166333,25.03784654,139.88,139.71,100.1893]
[1765398166539,25.03784654,139.88,139.73,100.175]
[1765398166848,0.0532264,139.82,139.79,0.05391716]
[1765398167151,0.05177899,139.82,139.79,0.05154335]
[1765398167543,59.42,139.92,139.79,0.05154335]
[1765398167736,59.9,139.97,139.8,100.1215]
[1765398167939,59.9,139.97,139.8,100.1191]
[1765398168240,25.03784654,139.94,139.77,100.1428]
[1765398168638,0.05278146,139.87,139.84,0.05187768]
[1765398168837,0.05168477,139.87,139.84,0.05152952]
[1765398169833,25.03784654,140.05,139.87,100.0716]
[1765398170145,25.03784654,140.12,139.92,100.0345]
[1765398170338,25.03784654,140.12,139.9,100.0468]
[1765398170339,25.03784654,140.08,139.9,100.0521]
[1765398170539,25.03784654,140.12,139.91,100.0419]
[1765398171049,0.04601747,140.03,140.0,0.05338328]
[1765398171233,0.05142515,140.03,140.0,0.04825931]
[1765398171438,1.47142515,140.03,140.0,0.04825931]
[1765398171641,1.47142515,140.03,139.85,100.0887]
[1765398171941,25.03784654,140.05,139.87,100.0713]
[1765398172141,124.91704654,140.15,139.93,100.0279]
[1765398172446,25.03784654,140.11,139.9,100.0473]
[1765398172648,0.05165361,140.02,139.99,0.04921824]
[1765398172836,25.03784654,140.11,139.9,160.5473]
[1765398173038,25.03784654,140.15,139.99,0.05489684]
[1765398173242,99.8578,140.18,139.96,100.005]
[1765398173442,99.8566,140.18,139.96,100.005]
[1765398173642,124.88744654,140.19,139.98,99.9932]
[1765398173842,124.88744654,140.19,139.91,300.1241]
[1765398173843,124.91574654,140.15,139.92,100.0378]
[1765398174045,25.03784654,140.12,139.94,100.0213]
[1765398174249,0.04917794,140.04,140.02,0.04578377]
[1765398174449,99.8819,140.15,139.95,100.0145]
[1765398174450,25.03784654,140.15,139.95,100.0145]
[1765398174656,124.94504654,140.11,139.9,100.0466]
[1765398175148,99.922,140.09,139.88,100.0606]
[1765398175449,99.922,140.09,139.86,125.11744654]
[1765398175450,0.04641014,140.0,139.97,0.04649858]
[1765398175751,0.04670462,140.0,139.97,0.0492328]
[1765398177044,1.46670462,140.0,139.8,100.1231]
[1765398177251,125.00144654,140.03,139.76,100.1499]
[1765398177252,100.0107,139.96,139.76,100.1499]
[1765398177451,100.0348,139.93,139.72,100.1751]
[1765398177638,100.0281,139.94,139.69,21.58775344]
[1765398177639,100.0875,139.86,139.69,21.58775344]
[1765398177846,100.0875,139.86,139.63,100.244]
[1765398177847,125.14654654,139.83,139.63,100.244]
[1765398178148,0.04625493,139.74,139.72,0.05431953]
[1765398178452,0.04642505,139.74,139.72,0.04976526]
[1765398179649,59.5,139.85,139.72,0.04976526]
[1765398179848,59.5,139.85,139.7,100.1943]
[1765398179849,59.5,139.89,139.71,100.186]
[1765398180047,59.5,139.89,139.72,100.1767]
[1765398180347,100.0052,139.97,139.78,100.1361]
[1765398180559,0.05283579,139.89,139.86,0.04522616]
[1765398180753,0.0522942,139.89,139.86,0.05234641]
[1765398181147,114.77451598,139.84,139.65,100.229]
[1765398181347,114.77451598,139.84,139.64,100.2378]
[1765398181348,100.1123,139.82,139.63,100.2422]
[1765398181545,14.67321598,139.8,139.63,100.2422]
[1765398181749,14.67321598,139.8,139.65,100.2291]
[1765398181943,14.67321598,139.8,139.64,100.2327]
[1765398182245,99.9767,140.01,139.81,100.1121]
[1765398182451,99.9858,140.0,139.81,100.1121]
[1765398182653,14.67321598,139.97,139.8,100.1218]
[1765398182851,14.67321598,139.97,139.8,100.1215]
[1765398183058,0.05149435,139.9,139.87,0.04883468]
[1765398183258,6.4354,139.83,139.65,100.2284]
[1765398183559,100.1147,139.82,139.65,100.2308]
[1765398183752,100.1366,139.79,139.61,100.258]
[1765398184056,114.78701598,139.82,139.64,100.2364]
[1765398184250,100.0904,139.85,139.72,0.05293933]